[Event "Open Gent 2023 Unrated"]
[Site "Gent, Belgium"]
[Date "2023.07.16"]
[Round "3.1"]
[White "Froeyman, Helmut"]
[Black "Boog, Ben"]
[Result "1-0"]
[TimeControl "90'+30''"]
[WhiteTitle "FM"]
[WhiteElo "2308"]
[BlackElo "2120"]

1. e4 {[%clk 01:30:56]} {[%emt 00:00:02]} c6 {[%clk 01:30:55]} {[%emt
00:00:06]} 2. d4 {[%clk 01:31:18]} {[%emt 00:00:07]} d6 {[%clk 01:30:35]}
{[%emt 00:00:51]} 3. Nf3 {[%clk 01:30:36]} {[%emt 00:01:12]} Bg4 {[%clk
01:30:32]} {[%emt 00:00:33]} 4. h3 {[%clk 01:26:39]} {[%emt 00:04:27]} Bh5
{[%clk 01:28:40]} {[%emt 00:02:23]} 5. Bd3 {[%clk 01:25:30]} {[%emt 00:01:39]}
Nd7 {[%clk 01:27:35]} {[%emt 00:01:35]} 6. c3 {[%clk 01:13:05]} {[%emt
00:12:54]} e5 {[%clk 01:24:06]} {[%emt 00:04:00]} 7. Nbd2 {[%clk 01:07:04]}
{[%emt 00:06:30]} Qc7 {[%clk 01:15:28]} {[%emt 00:09:08]} 8. O-O {[%clk
00:59:56]} {[%emt 00:07:37]} Be7 {[%clk 01:15:13]} {[%emt 00:00:46]} 9. Re1
{[%clk 00:52:43]} {[%emt 00:07:43]} h6 {[%clk 00:58:21]} {[%emt 00:17:22]} 10.
Nf1 {[%clk 00:45:16]} {[%emt 00:07:56]} Bf6 {[%clk 00:51:24]} {[%emt 00:07:28]}
11. Be3 {[%clk 00:44:15]} {[%emt 00:01:30]} Ne7 {[%clk 00:50:11]} {[%emt
00:01:44]} 12. Ng3 {[%clk 00:40:44]} {[%emt 00:04:01]} Bg6 {[%clk 00:48:36]}
{[%emt 00:02:06]} 13. a4 {[%clk 00:35:31]} {[%emt 00:05:43]} O-O {[%clk
00:42:26]} {[%emt 00:06:40]} 14. dxe5 {[%clk 00:29:38]} {[%emt 00:06:23]} dxe5
{[%clk 00:37:56]} {[%emt 00:05:00]} 15. Bc4 {[%clk 00:27:32]} {[%emt 00:02:34]}
b6 {[%clk 00:33:27]} {[%emt 00:05:00]} 16. Qe2 {[%clk 00:22:33]} {[%emt
00:05:28]} Rfd8 {[%clk 00:31:00]} {[%emt 00:02:58]} 17. Red1 {[%clk 00:21:30]}
{[%emt 00:01:33]} Nf8 {[%clk 00:30:33]} {[%emt 00:00:58]} 18. Rxd8 {[%clk
00:20:00]} {[%emt 00:02:00]} Rxd8 {[%clk 00:30:52]} {[%emt 00:00:12]} 19. Rd1
{[%clk 00:20:04]} {[%emt 00:00:25]} Nc8 {[%clk 00:25:45]} {[%emt 00:05:38]} 20.
Rxd8 {[%clk 00:15:18]} {[%emt 00:05:15]} Qxd8 {[%clk 00:25:50]} {[%emt
00:00:25]} 21. Qd2 {[%clk 00:14:27]} {[%emt 00:01:22]} Qxd2 {[%clk 00:25:22]}
{[%emt 00:00:58]} 22. Nxd2 {[%clk 00:14:46]} {[%emt 00:00:10]} Nd6 {[%clk
00:25:31]} {[%emt 00:00:21]} 23. f3 {[%clk 00:12:51]} {[%emt 00:02:25]} Nxc4
{[%clk 00:24:49]} {[%emt 00:01:13]} 24. Nxc4 {[%clk 00:13:13]} {[%emt
00:00:07]} Nd7 {[%clk 00:21:32]} {[%emt 00:03:48]} 25. Nd6 {[%clk 00:11:54]}
{[%emt 00:01:48]} Bd8 {[%clk 00:15:12]} {[%emt 00:06:50]} 26. a5 {[%clk
00:10:10]} {[%emt 00:02:14]} bxa5 {[%clk 00:14:09]} {[%emt 00:01:33]} 27. Bxa7
{[%clk 00:10:24]} {[%emt 00:00:15]} Bb6+ {[%clk 00:11:42]} {[%emt 00:02:57]} 28.
Bxb6 {[%clk 00:10:41]} {[%emt 00:00:14]} Nxb6 {[%clk 00:12:11]} 29. Kf2 {[%clk
00:09:38]} {[%emt 00:01:32]} Kf8 {[%clk 00:12:25]} {[%emt 00:00:16]} 30. Ke2
{[%clk 00:09:08]} {[%emt 00:01:00]} Ke7 {[%clk 00:10:29]} {[%emt 00:02:27]} 31.
Nb7 {[%clk 00:08:54]} {[%emt 00:00:43]} a4 {[%clk 00:10:22]} {[%emt 00:00:37]}
32. Kd3 {[%clk 00:08:34]} {[%emt 00:00:49]} Kd7 {[%clk 00:08:57]} {[%emt
00:01:57]} 33. Na5 {[%clk 00:06:47]} {[%emt 00:02:17]} Kc7 {[%clk 00:07:58]}
{[%emt 00:01:28]} 34. Nc4 {[%clk 00:06:22]} {[%emt 00:00:55]} Nd7 {[%clk
00:08:28]} {[%emt 00:00:01]} 35. Ne3 {[%clk 00:05:31]} {[%emt 00:01:21]} f6
{[%clk 00:03:32]} {[%emt 00:05:26]} 36. Ngf5 {[%clk 00:02:31]} {[%emt
00:03:30]} Nc5+ {[%clk 00:01:58]} {[%emt 00:02:04]} 37. Kc4 {[%clk 00:02:49]}
{[%emt 00:00:12]} Kb6 {[%clk 00:02:08]} {[%emt 00:00:20]} 38. Kb4 {[%clk
00:01:29]} {[%emt 00:01:50]} Nd3+ {[%clk 00:02:30]} {[%emt 00:00:07]} 39. Kxa4
{[%clk 00:01:20]} {[%emt 00:00:39]} Nxb2+ {[%clk 00:02:56]} {[%emt 00:00:04]}
40. Kb3 {[%clk 00:01:40]} {[%emt 00:00:10]} Nd3 {[%clk 00:03:14]} {[%emt
00:00:13]} 41. Nxg7 {[%clk 00:01:40]} {[%emt 00:00:30]} Nf4 {[%clk 00:03:17]}
{[%emt 00:00:27]} 42. h4 {[%clk 00:01:12]} {[%emt 00:00:58]} Kc5 {[%clk
00:03:01]} {[%emt 00:00:46]} 43. Kc2 {[%clk 00:01:21]} {[%emt 00:00:21]} Bf7
{[%clk 00:02:47]} {[%emt 00:00:44]} 44. Kd2 {[%clk 00:01:05]} {[%emt 00:00:45]}
h5 {[%clk 00:02:13]} {[%emt 00:01:05]} 45. g3 {[%clk 00:00:55]} {[%emt
00:00:40]} Ng6 {[%clk 00:01:52]} {[%emt 00:00:51]} 46. Nxh5 {[%clk 00:00:46]}
{[%emt 00:00:39]} Nxh4 {[%clk 00:02:17]} {[%emt 00:00:05]} 47. gxh4 {[%clk
00:00:45]} {[%emt 00:00:32]} Bxh5 {[%clk 00:02:46]} 48. Ng4 {[%clk 00:00:48]}
{[%emt 00:00:26]} Kd6 {[%clk 00:03:02]} {[%emt 00:00:15]} 49. Ke3 {[%clk
00:00:44]} {[%emt 00:00:33]} Ke6 {[%clk 00:03:26]} {[%emt 00:00:07]} 50. Nh6
{[%clk 00:00:46]} {[%emt 00:00:28]} Bg6 {[%clk 00:03:37]} {[%emt 00:00:19]} 51.
Kf2 {[%clk 00:00:39]} {[%emt 00:00:36]} Kd6 {[%clk 00:03:36]} {[%emt 00:00:32]}
52. Ng4 {[%clk 00:00:59]} {[%emt 00:00:09]} Ke6 {[%clk 00:03:51]} {[%emt
00:00:16]} 53. Ne3 {[%clk 00:01:20]} {[%emt 00:00:09]} Bh5 {[%clk 00:03:50]}
{[%emt 00:00:31]} 54. Kg3 {[%clk 00:01:40]} {[%emt 00:00:10]} Kd6 {[%clk
00:02:47]} {[%emt 00:01:32]} 55. f4 {[%clk 00:01:43]} {[%emt 00:00:27]} Ke6
{[%clk 00:01:35]} {[%emt 00:01:43]} 56. Nf5 {[%clk 00:01:57]} {[%emt 00:00:15]}
Bg6 {[%clk 00:01:21]} {[%emt 00:00:44]} 57. Kg4 {[%clk 00:01:43]} {[%emt
00:00:43]} exf4 {[%clk 00:01:50]} {[%emt 00:00:02]} 58. Kxf4 {[%clk 00:02:01]}
{[%emt 00:00:12]} c5 {[%clk 00:01:51]} {[%emt 00:00:30]} 59. h5 {[%clk
00:01:25]} {[%emt 00:01:06]} Bh7 {[%clk 00:02:20]} 60. Nh4 {[%clk 00:01:16]}
{[%emt 00:00:38]} Kd6 {[%clk 00:02:38]} {[%emt 00:00:14]} 61. Ng6 {[%clk
00:01:11]} {[%emt 00:00:35]} 1-0

[Event "Open Gent 2023 Unrated"]
[Site "Gent, Belgium"]
[Date "2023.07.16"]
[Round "3.4"]
[White "Dam, Hans"]
[Black "Goormachtigh, Johan"]
[Result "1/2-1/2"]
[TimeControl "90'+30''"]
[BlackTitle "FM"]
[WhiteElo "2025"]
[BlackElo "2183"]

1. c4 {[%clk 01:28:09]} {[%emt 00:02:50]} c5 {[%clk 01:29:19]} {[%emt
00:01:42]} 2. Nc3 {[%clk 01:28:29]} {[%emt 00:00:10]} Nc6 {[%clk 01:29:34]}
{[%emt 00:00:15]} 3. g3 {[%clk 01:28:53]} {[%emt 00:00:06]} g6 {[%clk
01:29:41]} {[%emt 00:00:23]} 4. Bg2 {[%clk 01:29:14]} {[%emt 00:00:09]} Bg7
{[%clk 01:30:05]} {[%emt 00:00:06]} 5. Nf3 {[%clk 01:29:39]} {[%emt 00:00:05]}
e5 {[%clk 01:28:46]} {[%emt 00:01:49]} 6. d3 {[%clk 01:26:49]} {[%emt
00:03:20]} Nge7 {[%clk 01:28:52]} {[%emt 00:00:24]} 7. O-O {[%clk 01:25:32]}
{[%emt 00:01:48]} d6 {[%clk 01:27:14]} {[%emt 00:02:09]} 8. a3 {[%clk
01:25:54]} {[%emt 00:00:08]} a5 {[%clk 01:26:34]} {[%emt 00:01:09]} 9. Bg5
{[%clk 01:15:50]} {[%emt 00:10:34]} h6 {[%clk 01:20:54]} {[%emt 00:06:10]} 10.
Bd2 {[%clk 01:15:52]} {[%emt 00:00:28]} O-O {[%clk 01:19:59]} {[%emt 00:01:25]}
11. Rb1 {[%clk 01:14:48]} {[%emt 00:01:34]} Rb8 {[%clk 01:16:30]} {[%emt
00:03:58]} 12. Ne1 {[%clk 01:07:12]} {[%emt 00:08:06]} Be6 {[%clk 01:00:49]}
{[%emt 00:16:12]} 13. e4 {[%clk 01:00:21]} {[%emt 00:07:21]} f5 {[%clk
00:52:04]} {[%emt 00:09:15]} 14. f3 {[%clk 01:00:05]} {[%emt 00:00:46]} Nd4
{[%clk 00:49:13]} {[%emt 00:03:21]} 15. b4 {[%clk 00:58:22]} {[%emt 00:02:13]}
axb4 {[%clk 00:48:40]} {[%emt 00:01:03]} 16. axb4 {[%clk 00:58:51]} {[%emt
00:00:01]} cxb4 {[%clk 00:42:23]} {[%emt 00:06:47]} 17. Rxb4 {[%clk 00:59:18]}
{[%emt 00:00:02]} Nec6 {[%clk 00:40:06]} {[%emt 00:02:47]} 18. Rb2 {[%clk
00:58:04]} {[%emt 00:01:44]} fxe4 {[%clk 00:38:49]} {[%emt 00:01:47]} 19. fxe4
{[%clk 00:58:12]} {[%emt 00:00:22]} Qd7 {[%clk 00:37:08]} {[%emt 00:02:11]} 20.
Rxf8+ {[%clk 00:55:43]} {[%emt 00:02:59]} Rxf8 {[%clk 00:37:29]} {[%emt
00:00:09]} 21. Qb1 {[%clk 00:55:57]} {[%emt 00:00:15]} Rf7 {[%clk 00:37:37]}
{[%emt 00:00:23]} 22. Be3 {[%clk 00:56:23]} {[%emt 00:00:04]} Kh7 {[%clk
00:32:50]} {[%emt 00:05:17]} 23. Rf2 {[%clk 00:52:10]} {[%emt 00:04:43]} Rxf2
{[%clk 00:30:42]} {[%emt 00:02:38]} 24. Bxf2 {[%clk 00:50:57]} {[%emt
00:01:42]} Bf6 {[%clk 00:30:15]} {[%emt 00:00:58]} 25. Nf3 {[%clk 00:43:23]}
{[%emt 00:08:03]} Nxf3+ {[%clk 00:26:33]} {[%emt 00:04:12]} 26. Bxf3 {[%emt
00:00:30]} 1/2-1/2

[Event "Open Gent 2023 Unrated"]
[Site "Gent, Belgium"]
[Date "2023.07.16"]
[Round "4.1"]
[White "Plomp, Micha"]
[Black "Froeyman, Helmut"]
[Result "1/2-1/2"]
[TimeControl "90'+30''"]
[BlackTitle "FM"]
[WhiteElo "2130"]
[BlackElo "2308"]

1. e4 {[%clk 01:30:57]} {[%emt 00:00:02]} e5 {[%clk 01:30:55]} {[%emt
00:00:05]} 2. Nc3 {[%clk 01:31:15]} {[%emt 00:00:10]} Nf6 {[%clk 01:31:20]}
{[%emt 00:00:06]} 3. Bc4 {[%clk 01:31:31]} {[%emt 00:00:15]} Nxe4 {[%clk
01:29:47]} {[%emt 00:02:02]} 4. Qh5 {[%clk 01:29:09]} {[%emt 00:02:52]} Nd6
{[%clk 01:29:53]} {[%emt 00:00:24]} 5. Bb3 {[%clk 01:29:31]} {[%emt 00:00:08]}
Be7 {[%clk 01:29:40]} {[%emt 00:00:43]} 6. Nf3 {[%clk 01:29:20]} {[%emt
00:00:41]} Nc6 {[%clk 01:28:56]} {[%emt 00:01:15]} 7. d3 {[%clk 01:25:35]}
{[%emt 00:04:15]} g6 {[%clk 01:24:09]} {[%emt 00:05:17]} 8. Qh3 {[%clk
01:23:31]} {[%emt 00:02:34]} Nf5 {[%clk 01:10:36]} {[%emt 00:14:04]} 9. Nd5
{[%clk 01:19:12]} {[%emt 00:04:49]} h5 {[%clk 00:59:29]} {[%emt 00:11:37]} 10.
Nxe7 {[%clk 01:01:06]} {[%emt 00:18:36]} Qxe7 {[%clk 00:58:54]} {[%emt
00:01:04]} 11. Ng5 {[%clk 00:53:46]} {[%emt 00:07:50]} Nd8 {[%clk 00:53:44]}
{[%emt 00:05:41]} 12. c3 {[%clk 00:29:07]} {[%emt 00:25:10]} d6 {[%clk
00:49:11]} {[%emt 00:05:02]} 13. Ne4 {[%clk 00:27:39]} {[%emt 00:01:57]} Nd4
{[%clk 00:28:21]} {[%emt 00:21:20]} 14. Qg3 {[%clk 00:22:14]} {[%emt 00:05:55]}
Nf5 {[%clk 00:23:24]} {[%emt 00:05:27]} 15. Qg5 {[%clk 00:19:09]} {[%emt
00:03:35]} Ne6 {[%clk 00:23:29]} {[%emt 00:00:25]} 16. Bxe6 {[%clk 00:13:59]}
{[%emt 00:05:40]} Bxe6 {[%clk 00:23:20]} {[%emt 00:00:39]} 17. Nf6+ {[%clk
00:14:03]} {[%emt 00:00:26]} Kf8 {[%clk 00:19:55]} {[%emt 00:03:56]} 18. Ne4
{[%clk 00:12:17]} {[%emt 00:02:16]} Qxg5 {[%clk 00:16:17]} {[%emt 00:04:08]} 19.
Bxg5 {[%clk 00:12:37]} {[%emt 00:00:09]} Ne7 {[%clk 00:15:30]} {[%emt
00:01:17]} 20. Bf6 {[%clk 00:10:50]} {[%emt 00:02:17]} Rh6 {[%clk 00:15:04]}
{[%emt 00:00:51]} 21. O-O {[%clk 00:09:35]} {[%emt 00:01:49]} Ng8 {[%clk
00:13:26]} {[%emt 00:02:08]} 22. Bg5 {[%clk 00:09:36]} {[%emt 00:00:29]} Rh8
{[%clk 00:12:14]} {[%emt 00:01:42]} 23. f4 {[%clk 00:09:39]} {[%emt 00:00:27]}
exf4 {[%clk 00:10:27]} {[%emt 00:02:17]} 24. Rxf4 {[%clk 00:09:40]} {[%emt
00:00:28]} f5 {[%clk 00:10:18]} {[%emt 00:00:40]} 25. c4 {[%clk 00:08:36]}
{[%emt 00:01:34]} Kg7 {[%clk 00:07:45]} {[%emt 00:03:03]} 26. Nc3 {[%clk
00:08:48]} {[%emt 00:00:17]} Nf6 {[%emt 00:02:00]} 1/2-1/2

[Event "Open Gent 2023 Unrated"]
[Site "Gent, Belgium"]
[Date "2023.07.16"]
[Round "4.2"]
[White "Oorebeek, Erwin"]
[Black "Roelandt, Andreas"]
[Result "1/2-1/2"]
[TimeControl "90'+30''"]
[WhiteElo "2199"]
[BlackElo "1876"]

1. d4 {[%clk 01:30:56]} {[%emt 00:00:03]} d5 {[%clk 01:30:49]} {[%emt
00:00:12]} 2. Nf3 {[%clk 01:31:21]} {[%emt 00:00:04]} Nf6 {[%clk 01:31:04]}
{[%emt 00:00:15]} 3. g3 {[%clk 01:31:46]} {[%emt 00:00:05]} c6 {[%clk
01:29:04]} {[%emt 00:02:31]} 4. Bg2 {[%clk 01:31:23]} {[%emt 00:00:52]} Bf5
{[%clk 01:27:24]} {[%emt 00:02:09]} 5. c4 {[%clk 01:31:45]} {[%emt 00:00:08]}
e6 {[%clk 01:27:41]} {[%emt 00:00:14]} 6. Nc3 {[%clk 01:32:08]} {[%emt
00:00:07]} h6 {[%clk 01:19:42]} {[%emt 00:08:29]} 7. Qb3 {[%clk 01:30:30]}
{[%emt 00:02:09]} Qb6 {[%clk 01:17:29]} {[%emt 00:02:43]} 8. c5 {[%clk
01:30:22]} {[%emt 00:00:37]} Qxb3 {[%clk 01:17:51]} {[%emt 00:00:08]} 9. axb3
{[%clk 01:30:50]} {[%emt 00:00:02]} Na6 {[%clk 01:03:34]} {[%emt 00:14:48]} 10.
Ra4 {[%clk 01:29:14]} {[%emt 00:02:06]} Bc2 {[%clk 00:59:23]} {[%emt 00:04:41]}
11. Ne5 {[%clk 01:23:30]} {[%emt 00:06:13]} Nc7 {[%clk 00:54:13]} {[%emt
00:05:40]} 12. h4 {[%clk 01:20:02]} {[%emt 00:03:58]} a6 {[%clk 00:53:15]}
{[%emt 00:01:28]} 13. Bf4 {[%clk 01:14:49]} {[%emt 00:05:42]} Rc8 {[%clk
00:52:05]} {[%emt 00:01:41]} 14. Kd2 {[%clk 01:10:35]} {[%emt 00:04:44]} Bh7
{[%clk 00:50:56]} {[%emt 00:01:39]} 15. Raa1 {[%clk 00:58:24]} {[%emt
00:12:42]} Nd7 {[%clk 00:45:32]} {[%emt 00:05:53]} 16. Na4 {[%clk 00:56:42]}
{[%emt 00:02:12]} Nxe5 {[%clk 00:43:46]} {[%emt 00:02:16]} 17. Bxe5 {[%clk
00:52:00]} {[%emt 00:05:12]} Nb5 {[%clk 00:42:41]} {[%emt 00:01:35]} 18. e3
{[%clk 00:25:37]} {[%emt 00:26:52]} f6 {[%clk 00:36:58]} {[%emt 00:06:14]} 19.
Nb6 {[%clk 00:25:02]} {[%emt 00:01:06]} Rd8 {[%clk 00:35:45]} {[%emt 00:01:42]}
20. Bf4 {[%clk 00:25:17]} {[%emt 00:00:15]} g5 {[%clk 00:31:50]} {[%emt
00:04:25]} 21. hxg5 {[%clk 00:25:39]} {[%emt 00:00:07]} hxg5 {[%clk 00:32:12]}
{[%emt 00:00:09]} 22. Rh3 {[%clk 00:24:41]} {[%emt 00:01:29]} gxf4 {[%clk
00:31:24]} {[%emt 00:01:18]} 23. Rah1 {[%clk 00:24:28]} {[%emt 00:00:42]} fxe3+
{[%clk 00:26:36]} {[%emt 00:05:19]} 24. fxe3 {[%clk 00:24:17]} {[%emt
00:00:41]} Bg7 {[%clk 00:22:18]} {[%emt 00:04:47]} 25. Rxh7 {[%clk 00:22:51]}
{[%emt 00:01:57]} Kf7 {[%clk 00:22:15]} {[%emt 00:00:33]} 26. Rxh8 {[%clk
00:20:35]} {[%emt 00:02:46]} Rxh8 {[%clk 00:20:17]} {[%emt 00:02:28]} 27. Rxh8
{[%clk 00:20:59]} {[%emt 00:00:06]} Bxh8 {[%clk 00:20:42]} {[%emt 00:00:05]} 28.
Bf1 {[%clk 00:19:09]} {[%emt 00:02:20]} Nc7 {[%clk 00:12:19]} {[%emt 00:08:53]}
29. Nc8 {[%clk 00:19:08]} {[%emt 00:00:31]} Ne8 {[%clk 00:12:43]} {[%emt
00:00:06]} 30. Be2 {[%clk 00:15:58]} {[%emt 00:03:40]} Kg6 {[%clk 00:12:32]}
{[%emt 00:00:40]} 31. Kc3 {[%clk 00:15:58]} {[%emt 00:00:31]} f5 {[%clk
00:11:28]} {[%emt 00:01:35]} 32. g4 {[%clk 00:12:36]} {[%emt 00:03:51]} Bf6
{[%clk 00:11:28]} {[%emt 00:00:29]} 33. Bd3 {[%clk 00:10:31]} {[%emt 00:02:36]}
Bd8 {[%clk 00:10:40]} {[%emt 00:01:17]} 34. Kb4 {[%clk 00:07:09]} {[%emt
00:03:52]} Kf6 {[%clk 00:10:45]} {[%emt 00:00:25]} 35. gxf5 {[%clk 00:07:24]}
{[%emt 00:00:15]} exf5 {[%clk 00:11:09]} {[%emt 00:00:06]} 36. Kc3 {[%emt
00:03:48]} 1/2-1/2

[Event "Open Gent 2023 Unrated"]
[Site "Gent, Belgium"]
[Date "2023.07.16"]
[Round "4.3"]
[White "Goormachtigh, Johan"]
[Black "Smaling, Eric"]
[Result "1/2-1/2"]
[TimeControl "90'+30''"]
[WhiteTitle "FM"]
[WhiteElo "2183"]
[BlackElo "1919"]

1. d4 {[%clk 01:30:54]} {[%emt 00:00:05]} Nf6 {[%clk 01:30:18]} {[%emt
00:00:42]} 2. c4 {[%clk 01:31:08]} {[%emt 00:00:16]} c5 {[%clk 01:30:39]}
{[%emt 00:00:09]} 3. d5 {[%clk 01:31:12]} {[%emt 00:00:26]} e5 {[%clk
01:30:37]} {[%emt 00:00:31]} 4. Nc3 {[%clk 01:31:20]} {[%emt 00:00:23]} d6
{[%clk 01:30:55]} {[%emt 00:00:12]} 5. e4 {[%clk 01:31:03]} {[%emt 00:00:47]}
Be7 {[%clk 01:31:14]} {[%emt 00:00:11]} 6. h3 {[%clk 01:26:58]} {[%emt
00:04:36]} O-O {[%clk 01:31:13]} {[%emt 00:00:30]} 7. Nf3 {[%clk 01:27:21]}
{[%emt 00:00:07]} Ne8 {[%clk 01:28:21]} {[%emt 00:03:21]} 8. g4 {[%clk
01:25:39]} {[%emt 00:02:12]} g6 {[%clk 01:24:57]} {[%emt 00:03:54]} 9. Bh6
{[%clk 01:23:12]} {[%emt 00:02:58]} Ng7 {[%clk 01:25:12]} {[%emt 00:00:15]} 10.
Bd3 {[%clk 01:22:12]} {[%emt 00:01:30]} f6 {[%clk 01:22:13]} {[%emt 00:03:29]}
11. Rg1 {[%clk 01:13:45]} {[%emt 00:08:57]} Rf7 {[%clk 01:17:18]} {[%emt
00:05:25]} 12. Qd2 {[%clk 01:12:42]} {[%emt 00:01:34]} a6 {[%clk 01:12:52]}
{[%emt 00:04:56]} 13. a4 {[%clk 01:08:50]} {[%emt 00:04:22]} Qf8 {[%clk
01:03:22]} {[%emt 00:09:59]} 14. Ke2 {[%clk 00:59:46]} {[%emt 00:09:35]} b6
{[%clk 00:57:51]} {[%emt 00:06:01]} 15. Rg2 {[%clk 00:50:59]} {[%emt 00:09:17]}
Ra7 {[%clk 00:54:09]} {[%emt 00:04:11]} 16. Nd1 {[%clk 00:48:31]} {[%emt
00:02:58]} Bd8 {[%clk 00:53:11]} {[%emt 00:01:28]} 17. Ne3 {[%clk 00:47:44]}
{[%emt 00:01:17]} Qe8 {[%clk 00:52:52]} {[%emt 00:00:49]} 18. b3 {[%clk
00:46:23]} {[%emt 00:01:53]} Rfb7 {[%clk 00:49:29]} {[%emt 00:03:52]} 19. Rgg1
{[%clk 00:39:59]} {[%emt 00:06:55]} Nd7 {[%clk 00:40:01]} {[%emt 00:09:58]} 20.
h4 {[%clk 00:39:11]} {[%emt 00:01:18]} Nf8 {[%clk 00:39:06]} {[%emt 00:01:25]}
21. Nh2 {[%clk 00:32:37]} {[%emt 00:07:04]} Rf7 {[%clk 00:36:09]} {[%emt
00:03:26]} 22. f3 {[%clk 00:27:07]} {[%emt 00:06:00]} Rab7 {[%clk 00:35:18]}
{[%emt 00:01:20]} 23. Nhf1 {[%clk 00:26:26]} {[%emt 00:01:11]} Bd7 {[%clk
00:25:31]} {[%emt 00:10:17]} 24. Ng3 {[%clk 00:24:40]} {[%emt 00:02:16]} Be7
{[%clk 00:22:35]} {[%emt 00:03:25]} 25. Qc2 {[%clk 00:19:47]} {[%emt 00:05:25]}
Qb8 {[%clk 00:22:14]} {[%emt 00:00:51]} 26. Ra2 {[%clk 00:18:52]} {[%emt
00:01:25]} Bd8 {[%clk 00:20:56]} {[%emt 00:01:47]} 27. Rh1 {[%clk 00:18:00]}
{[%emt 00:01:22]} b5 {[%clk 00:19:06]} {[%emt 00:02:19]} 28. axb5 {[%clk
00:16:44]} {[%emt 00:01:46]} axb5 {[%clk 00:19:34]} {[%emt 00:00:02]} 29. Rha1
{[%clk 00:16:07]} {[%emt 00:01:06]} b4 {[%clk 00:14:47]} {[%emt 00:05:17]} 30.
Ra8 {[%clk 00:15:49]} {[%emt 00:00:48]} Qc7 {[%clk 00:15:15]} {[%emt 00:00:02]}
31. h5 {[%clk 00:14:07]} {[%emt 00:02:12]} Bc8 {[%clk 00:15:01]} {[%emt
00:00:44]} 32. Qa2 {[%clk 00:14:00]} {[%emt 00:00:38]} Nd7 {[%clk 00:15:06]}
{[%emt 00:00:24]} 33. Qc2 {[%clk 00:09:43]} {[%emt 00:04:46]} Nb6 {[%clk
00:14:49]} {[%emt 00:00:48]} 34. R8a2 {[%clk 00:10:00]} {[%emt 00:00:13]} Qb8
{[%clk 00:14:36]} {[%emt 00:00:42]} 35. Kf1 {[%clk 00:09:09]} {[%emt 00:01:21]}
Ra7 {[%clk 00:14:45]} {[%emt 00:00:21]} 36. Kg2 {[%clk 00:09:11]} {[%emt
00:00:28]} Qa8 {[%clk 00:15:01]} {[%emt 00:00:14]} 37. Kg1 {[%emt 00:03:26]}
1/2-1/2

[Event "Open Gent 2023 Unrated"]
[Site "Gent, Belgium"]
[Date "2023.07.16"]
[Round "4.4"]
[White "Kegels, Pascal"]
[Black "Hennipman, Rene"]
[Result "1-0"]
[TimeControl "90'+30''"]
[BlackTitle "CM"]
[WhiteElo "2057"]
[BlackElo "2183"]

1. e4 {[%clk 01:30:50]} {[%emt 00:00:09]} c6 {[%clk 01:30:38]} {[%emt
00:00:23]} 2. d4 {[%clk 01:29:37]} {[%emt 00:01:43]} d5 {[%clk 01:31:01]}
{[%emt 00:00:06]} 3. e5 {[%clk 01:26:54]} {[%emt 00:03:13]} c5 {[%clk
01:31:15]} {[%emt 00:00:16]} 4. c3 {[%clk 01:27:15]} {[%emt 00:00:09]} Nc6
{[%clk 01:31:24]} {[%emt 00:00:21]} 5. h3 {[%clk 01:23:14]} {[%emt 00:04:30]}
Bf5 {[%clk 01:28:46]} {[%emt 00:03:09]} 6. Nf3 {[%clk 01:23:19]} {[%emt
00:00:26]} e6 {[%clk 01:28:56]} {[%emt 00:00:20]} 7. Be2 {[%clk 01:21:46]}
{[%emt 00:02:03]} Nh6 {[%clk 01:18:34]} {[%emt 00:10:53]} 8. O-O {[%clk
01:18:19]} {[%emt 00:03:56]} Be7 {[%clk 01:08:41]} {[%emt 00:10:23]} 9. Be3
{[%clk 01:07:36]} {[%emt 00:11:12]} cxd4 {[%clk 01:01:45]} {[%emt 00:07:26]} 10.
cxd4 {[%clk 01:04:51]} {[%emt 00:03:15]} Bxb1 {[%clk 01:00:55]} {[%emt
00:01:21]} 11. Qxb1 {[%clk 00:57:13]} {[%emt 00:08:08]} Nf5 {[%clk 01:01:09]}
{[%emt 00:00:15]} 12. Bd3 {[%clk 00:57:15]} {[%emt 00:00:28]} g6 {[%clk
00:57:14]} {[%emt 00:04:26]} 13. a3 {[%clk 00:49:45]} {[%emt 00:08:00]} Rc8
{[%clk 00:51:11]} {[%emt 00:06:33]} 14. b4 {[%clk 00:46:10]} {[%emt 00:04:05]}
h5 {[%clk 00:48:57]} {[%emt 00:02:44]} 15. Qb2 {[%clk 00:43:30]} {[%emt
00:03:08]} h4 {[%clk 00:36:50]} {[%emt 00:12:37]} 16. Rac1 {[%clk 00:36:51]}
{[%emt 00:07:09]} Kf8 {[%clk 00:34:48]} {[%emt 00:02:33]} 17. Qd2 {[%clk
00:29:27]} {[%emt 00:07:53]} Kg7 {[%clk 00:34:35]} {[%emt 00:00:43]} 18. Rc3
{[%clk 00:22:41]} {[%emt 00:07:17]} Qd7 {[%clk 00:31:32]} {[%emt 00:03:33]} 19.
Rfc1 {[%clk 00:22:14]} {[%emt 00:00:56]} Nb8 {[%clk 00:30:28]} {[%emt
00:01:36]} 20. Rxc8 {[%clk 00:17:40]} {[%emt 00:05:04]} Rxc8 {[%clk 00:30:51]}
{[%emt 00:00:06]} 21. Rxc8 {[%clk 00:16:14]} {[%emt 00:01:57]} Qxc8 {[%clk
00:31:15]} {[%emt 00:00:06]} 22. Bg5 {[%clk 00:16:37]} {[%emt 00:00:06]} Qd8
{[%clk 00:30:42]} {[%emt 00:01:04]} 23. Bxf5 {[%clk 00:15:48]} {[%emt
00:01:18]} Bxg5 {[%clk 00:27:19]} {[%emt 00:03:53]} 24. Nxg5 {[%clk 00:15:55]}
{[%emt 00:00:23]} gxf5 {[%clk 00:27:38]} {[%emt 00:00:12]} 25. Qf4 {[%clk
00:16:14]} {[%emt 00:00:10]} Kg6 {[%clk 00:23:44]} {[%emt 00:04:24]} 26. Nf3
{[%clk 00:16:17]} {[%emt 00:00:27]} Kh5 {[%clk 00:24:00]} {[%emt 00:00:14]} 27.
g4+ {[%clk 00:13:35]} {[%emt 00:03:11]} hxg3 {[%clk 00:24:08]} {[%emt
00:00:22]} 28. fxg3 {[%clk 00:09:22]} {[%emt 00:04:44]} Kg6 {[%clk 00:22:41]}
{[%emt 00:01:57]} 29. g4 {[%clk 00:07:31]} {[%emt 00:02:20]} fxg4 {[%clk
00:23:00]} {[%emt 00:00:12]} 30. Qxg4+ {[%clk 00:06:30]} {[%emt 00:01:31]} Kh6
{[%clk 00:22:39]} {[%emt 00:00:51]} 31. h4 {[%clk 00:06:21]} {[%emt 00:00:40]}
Qf8 {[%clk 00:21:04]} {[%emt 00:02:04]} 32. Qf4+ {[%clk 00:05:45]} {[%emt
00:01:06]} Kh7 {[%clk 00:19:58]} {[%emt 00:01:36]} 33. Ng5+ {[%clk 00:05:17]}
{[%emt 00:00:59]} Kg6 {[%emt 00:00:37]} 34. Nxe6 {[%clk 00:05:02]} {[%emt
00:00:37]} Qe7 {[%clk 00:19:19]} {[%emt 00:01:09]} 35. Qg4+ {[%clk 00:04:53]}
{[%emt 00:00:39]} Kh6 {[%clk 00:19:14]} {[%emt 00:00:35]} 36. Qg7+ {[%clk
00:04:52]} {[%emt 00:00:31]} Kh5 {[%clk 00:19:28]} {[%emt 00:00:16]} 37. Nf4+
{[%clk 00:05:13]} {[%emt 00:00:09]} 1-0